fUSD/lending_fUSD_20260320
["ID","MTS","AMOUNT","RATE_DAILY","PERIOD"]
[408634488,1774029037091,-151.0,0.00010394,2]
[408634490,1774029037101,-151.0,0.00010394,2]
[408634492,1774029037110,-151.0,0.00010394,2]
[408634494,1774029037120,-151.0,0.00010394,2]
[408634495,1774029037129,-151.0,0.00010394,2]
[408634497,1774029037138,-151.0,0.00010394,2]
[408634498,1774029037147,-151.0,0.00010394,2]
[408634499,1774029037157,-151.0,0.00010394,2]
[408634500,1774029037166,-151.0,0.00010394,2]
[408634501,1774029037176,-151.0,0.00010394,2]
[408634502,1774029037187,-151.0,0.00010394,2]
[408634503,1774029037196,-151.0,0.00010394,2]
[408634504,1774029037206,-151.0,0.00010394,2]
[408634505,1774029037222,-151.0,0.00010394,2]
[408634506,1774029037233,-151.0,0.00010394,2]
[408634507,1774029037243,-151.0,0.00010394,2]
[408634508,1774029037252,-151.0,0.00010397,2]
[408634509,1774029037261,-500.0,0.00010399,2]
[408634510,1774029037276,-50517.0732,0.000104,2]
[408634511,1774029037289,-150.0,0.000104,2]
[408634512,1774029037298,-5000.0,0.00010649,2]
[408634513,1774029037307,-250.0,0.00010649,2]
[408634514,1774029037317,-250.0,0.00010649,2]
[408634515,1774029037327,-5000.0,0.00010649,2]
[408634516,1774029037337,-500.0,0.00010673,2]
[408634517,1774029037349,-1461.48110588,0.00010967,2]
[408634518,1774029037362,-617.37656424,0.00010967,2]
[408634519,1774029037372,-1280.52464246,0.00010967,2]
[408634520,1774029037381,-420.0,0.00010999,2]
[408634521,1774029037390,-1680.0,0.00010999,2]
[408634522,1774029037400,-182.0,0.00010999,2]
[408634523,1774029037409,-268.53181064,0.00011199,2]
[408634524,1774029037418,-19704.87,0.00011239,2]
[408634525,1774029037427,-250.0,0.00011299,2]
[408634526,1774029037438,-500.0,0.00011299,2]
[408634527,1774029037447,-1191.11104075,0.00011299,2]
[408634528,1774029037457,-7965.41053268,0.00011299,2]
[408634529,1774029037466,-500.0,0.00011299,2]
[408634530,1774029037477,-151.0,0.00011299,2]
[408634531,1774029037487,-250.0,0.00011299,2]
[408634532,1774029037497,-500.0,0.00011299,2]
[408634533,1774029037506,-277.82178945,0.00011299,2]
[408634534,1774029037516,-500.0,0.00011299,2]
[408634535,1774029037525,-500.0,0.00011299,2]
[408634536,1774029037536,-500.0,0.00011299,2]
[408634537,1774029037545,-500.0,0.00011299,2]
[408634538,1774029037555,-500.0,0.00011299,2]
[408634539,1774029037564,-500.0,0.00011299,2]
[408634540,1774029037573,-500.0,0.00011299,2]
[408634541,1774029037583,-500.0,0.00011299,2]
[408634542,1774029037592,-500.0,0.00011299,2]
[408634543,1774029037601,-500.0,0.00011299,2]
[408634544,1774029037611,-500.0,0.00011299,2]
[408634545,1774029037621,-500.0,0.00011299,2]
[408634546,1774029037630,-500.0,0.00011299,2]
[408634547,1774029037640,-500.0,0.00011299,2]
[408634548,1774029037650,-500.0,0.00011299,2]
[408634550,1774029037659,-500.0,0.00011299,2]
[408634551,1774029037670,-500.0,0.00011299,2]
[408634552,1774029037679,-250.0,0.00011299,2]
[408634554,1774029037690,-500.0,0.00011299,2]
[408634556,1774029037699,-186.96675001,0.00011299,2]
[408634558,1774029037709,-250.0,0.00011299,2]
[408634560,1774029037719,-500.0,0.00011299,2]
[408634562,1774029037729,-500.0,0.00011299,2]
[408634564,1774029037739,-250.0,0.00011299,2]
[408634566,1774029037748,-174.61919141,0.00011299,2]
[408634568,1774029037757,-500.0,0.00011299,2]
[408634569,1774029037767,-500.0,0.00011299,2]
[408634570,1774029037776,-250.0,0.00011299,2]
[408634571,1774029037786,-500.0,0.00011299,2]
[408634572,1774029037795,-500.0,0.00011299,2]
[408634573,1774029037805,-500.0,0.00011299,2]
[408634574,1774029037814,-250.0,0.00011299,2]
[408634575,1774029037823,-250.0,0.00011299,2]
[408634576,1774029037834,-500.0,0.00011299,2]
[408634577,1774029037844,-250.0,0.00011299,2]
[408634578,1774029037853,-500.0,0.00011299,2]
[408634579,1774029037863,-500.0,0.00011299,2]
[408634580,1774029037872,-250.0,0.00011299,2]
[408634581,1774029037881,-500.0,0.00011299,2]
[408634582,1774029037891,-500.0,0.00011299,2]
[408634583,1774029037901,-250.0,0.00011299,2]
[408634584,1774029037910,-500.0,0.00011299,2]
[408634585,1774029037920,-500.0,0.00011299,2]
[408634586,1774029037931,-250.0,0.00011299,2]
[408634587,1774029037941,-167.29941878,0.00011299,2]
[408634588,1774029037974,-332.70058122,0.00011299,2]
[408634589,1774029037983,-250.0,0.00011299,2]
[408634590,1774029037993,-500.0,0.00011299,2]
[408634591,1774029038003,-250.0,0.00011299,2]
[408634592,1774029038013,-210.86995944,0.00011299,2]
[408634593,1774029038025,-289.13004056,0.00011299,2]
[408634594,1774029038034,-65.86995945,0.00011299,2]
[408634596,1774029038046,-184.13004055,0.00011299,2]
[408634598,1774029038055,-250.0,0.00011299,2]
[408634600,1774029038064,-137.37915945,0.00011299,2]
[408634608,1774029038165,-324.27,0.00011299,2]
[408634609,1774029038385,-38.35084055,0.00011299,2]
[408634610,1774029038397,-200.0,0.00011299,2]
[408634611,1774029038407,-250.0,0.00011299,2]
[408634612,1774029038416,-80.04915945,0.00011299,2]
[408634613,1774029038450,-169.95084055,0.00011299,2]
[408634614,1774029038460,-250.0,0.00011299,2]
[408634615,1774029038469,-250.0,0.00011299,2]
[408634616,1774029038479,-151.0,0.00011299,2]
[408634617,1774029038488,-274.1930115,0.00011299,2]
[408634618,1774029038498,-250.0,0.00011299,2]
[408634619,1774029038507,-151.0,0.00011299,2]
[408634620,1774029038517,-250.0,0.00011299,2]
[408634621,1774029038526,-201.04041191,0.00011299,2]
[408634622,1774029038535,-250.0,0.00011299,2]
[408634623,1774029038544,-250.0,0.00011299,2]
[408634624,1774029038553,-151.0,0.00011299,2]
[408634625,1774029038563,-250.0,0.00011299,2]
[408634626,1774029038573,-250.0,0.00011299,2]
[408634627,1774029038582,-250.0,0.00011299,2]
[408634628,1774029038592,-299.00268145,0.00011299,2]
[408634629,1774029038601,-500.0,0.00011299,2]
[408634630,1774029038611,-169.13395939,0.00011299,2]
[408634631,1774029038620,-267.27798212,0.00011354,2]
[408634632,1774029038630,-255.0,0.00011411,2]
[408634633,1774029038639,-1003.89322888,0.00011482,2]
[408634634,1774029038649,-4439.7264,0.00011513,2]
[408634635,1774029038659,-197.3896,0.000117,2]
[408634636,1774029038668,-185.95895572,0.00011847,2]
[408634637,1774029038678,-442.12,0.00011885,2]
[408634638,1774029038687,-159.65,0.00012001,2]
[408634639,1774029038697,-587.0,0.00012099,2]
[408634640,1774029038706,-2351.0,0.00012099,2]
[408634641,1774029038715,-200.0,0.00012197,2]
[408634642,1774029038724,-160.16443494,0.00012233,2]
[408634643,1774029038734,-160.14530942,0.00012233,2]
[408634644,1774029038744,-161.09579951,0.00012233,2]
[408634645,1774029038753,-500.0,0.00012233,2]
[408634646,1774029038763,-160.16132412,0.00012233,2]
[408634647,1774029038772,-160.16582614,0.00012233,2]
[408634648,1774029038781,-500.0,0.00012233,2]
[408634649,1774029038791,-150.0,0.00012322,2]
[408634650,1774029038800,-500.0,0.00012348,2]
[408634651,1774029038810,-1000.0,0.0001249,2]
[408634652,1774029038819,-500.0,0.000125,2]
[408634653,1774029038829,-500.0,0.000125,2]
[408634654,1774029038838,-500.0,0.000125,2]
[408634655,1774029038847,-500.0,0.000125,2]
[408634656,1774029038856,-500.0,0.000125,2]
[408634657,1774029038866,-160.16589969,0.000125,2]
[408634658,1774029038876,-500.0,0.000125,2]
[408634659,1774029038886,-501.27392354,0.000125,2]
[408634660,1774029038895,-500.0,0.000125,2]
[408634661,1774029038904,-500.0,0.000125,2]
[408634662,1774029038914,-433.0,0.00012534,2]
[408634663,1774029038923,-500.0,0.0001254,2]
[408634664,1774029038933,-151.0,0.00012575,2]
[408634665,1774029038942,-151.0,0.00012575,2]
[408634666,1774029038954,-151.0,0.00012575,2]
[408634667,1774029038963,-1720.8,0.00012601,2]
[408634668,1774029038973,-151.0,0.00012601,2]
[408634669,1774029038982,-151.258115,0.00012601,2]
[408634670,1774029038991,-151.0,0.00012601,2]
[408634671,1774029039000,-151.0,0.00012601,2]
[408634672,1774029039010,-151.0,0.00012601,2]
[408634673,1774029039019,-500.0,0.00012781,2]
[408634674,1774029039028,-151.0,0.00012976,2]
[408634675,1774029039037,-151.0,0.00012976,2]
[408634676,1774029039047,-151.0,0.00012976,2]
[408634677,1774029039056,-151.0,0.00012976,2]
[408634678,1774029039065,-151.0,0.00012976,2]
[408634679,1774029039075,-979.16666667,0.00012991,2]
[408634680,1774029039084,-500.0,0.00013048,2]
[408634681,1774029039094,-500.0,0.00013048,2]
[408634682,1774029039103,-691.85246219,0.00013048,2]
[408634683,1774029039113,-500.0,0.00013048,2]
[408634684,1774029039122,-500.0,0.00013048,2]
[408634685,1774029039131,-500.0,0.00013088,2]
[408634686,1774029039141,-259.7512,0.000131,2]
[408634687,1774029039150,-167.6315957,0.00013143,2]
[408634688,1774029039159,-223.32689719,0.00013143,2]
[408634689,1774029039168,-500.0,0.00013143,2]
[408634690,1774029039178,-500.0,0.00013143,2]
[408634691,1774029039188,-500.0,0.00013143,2]
[408634692,1774029039197,-500.0,0.00013143,2]
[408634693,1774029039206,-500.0,0.00013143,2]
[408634694,1774029039215,-500.0,0.00013143,2]
[408634695,1774029039225,-500.0,0.00013143,2]
[408634696,1774029039234,-228.92884756,0.00013143,2]
[408634697,1774029039244,-741.2904873,0.00013144,2]
[408634698,1774029039255,-37017.4596966,0.00013144,2]
[408634699,1774029039264,-162.6142526,0.00013144,2]
[408634700,1774029039274,-151.0,0.00013144,2]
[408634701,1774029039283,-151.0,0.00013144,2]
[408634702,1774029039293,-263.194544,0.00013144,2]
[408634703,1774029039302,-35600.2682321,0.00013144,2]
[408634704,1774029039312,-151.0,0.00013144,2]
[408634705,1774029039321,-151.0,0.00013144,2]
[408634706,1774029039330,-151.0,0.00013144,2]
[408634707,1774029039340,-151.0,0.00013144,2]
[408634708,1774029039349,-151.0,0.00013144,2]
[408634709,1774029039362,-271.89558,0.00013144,2]
[408634710,1774029039371,-151.0,0.00013144,2]
[408634711,1774029039381,-2058.5542825,0.00013144,2]
[408634712,1774029039391,-153.120188,0.00013144,2]
[408634713,1774029039402,-6415.76120171,0.00013144,2]
[408634714,1774029039414,-7121.62979105,0.00013144,2]
[408634715,1774029040180,-920.58586554,0.00013144,2]
[408634716,1774029040190,-47798.5080287,0.00013144,2]
[408634717,1774029040201,-500.0,0.00013151,2]
[408634718,1774029040211,-500.0,0.00013151,2]
[408634719,1774029040220,-500.0,0.00013151,2]
[408634720,1774029040231,-500.0,0.00013151,2]
[408634721,1774029040241,-500.0,0.00013151,2]
[408634722,1774029040251,-500.0,0.00013151,2]
[408634723,1774029040261,-500.0,0.00013151,2]
[408634724,1774029040271,-159.65,0.00013201,2]
[408634725,1774029040281,-500.0,0.00013218,2]
[408634726,1774029040290,-500.0,0.00013218,2]
[408634727,1774029040300,-153.65437975,0.00013218,2]
[408634728,1774029040310,-503.0,0.000133,2]
[408634729,1774029040319,-823.0,0.00013309,2]
[408634730,1774029040328,-3292.0,0.00013309,2]
[408634731,1774029040338,-151.0,0.00013389,2]
[408634732,1774029040347,-151.0,0.00013392,2]
[408634733,1774029040359,-151.0,0.00013392,2]
[408634734,1774029040370,-151.0,0.00013392,2]
[408634735,1774029040379,-2390.94288314,0.000134,2]
[408634736,1774029040389,-1196.50965609,0.000134,2]
[408634737,1774029040399,-151.0,0.00013489,2]
[408634738,1774029040408,-247.49,0.00013492,2]
[408634739,1774029040418,-151.0,0.00013497,2]
[408634740,1774029040427,-273.85269138,0.00013498,2]
[408634741,1774029040438,-151.0,0.000135,2]
[408634742,1774029040448,-151.430801,0.000135,2]
[408634743,1774029040458,-151.0,0.000135,2]
[408634744,1774029040468,-1000.0,0.000135,2]
[408634745,1774029040478,-1000.0,0.000135,2]
[408634746,1774029040488,-1000.0,0.000135,2]
[408634747,1774029040499,-1000.0,0.000135,2]
[408634748,1774029040508,-1000.0,0.000135,2]
[408634749,1774029040518,-1000.0,0.000135,2]
[408634750,1774029040527,-194.445,0.000135,2]
[408634751,1774029040537,-151.0,0.000135,2]
[408634752,1774029040546,-151.0,0.000135,2]
[408634753,1774029040555,-151.0,0.000135,2]
[408634754,1774029040565,-151.0,0.000135,2]
[408634755,1774029040574,-151.0,0.000135,2]
[408634756,1774029040584,-151.0,0.000135,2]
[408634757,1774029040594,-1761.07123,0.000135,2]
[408634758,1774029040603,-522.7,0.00013531,2]
[408634759,1774029040612,-166.66,0.00013655,2]
[408634760,1774029040622,-151.0,0.00013673,2]
[408634761,1774029040631,-500.0,0.00013698,2]
[408634762,1774029040641,-500.0,0.00013698,2]
[408634763,1774029040651,-500.0,0.00013698,2]
[408634764,1774029040660,-500.0,0.00013698,2]
[408634765,1774029040670,-500.0,0.00013698,2]
[408634766,1774029040679,-500.0,0.00013698,2]
[408634767,1774029040689,-151.0,0.00013698,2]
[408634768,1774029040699,-500.0,0.00013698,2]
[408634769,1774029040708,-387.19872391,0.00013698,2]
[408634770,1774029040718,-500.0,0.00013698,2]
[408634771,1774029040727,-500.0,0.00013698,2]
[408634772,1774029040737,-500.0,0.00013698,2]
[408634773,1774029040746,-500.0,0.00013698,2]
[408634774,1774029040756,-500.0,0.00013698,2]
[408634775,1774029040765,-500.0,0.00013698,2]
[408634776,1774029040775,-227.13062337,0.00013699,2]
[408634777,1774029040785,-632.25,0.00013699,2]
[408634778,1774029040794,-156.69,0.00013699,2]
[408634779,1774029040804,-151.0,0.00013699,2]
[408634780,1774029040813,-153.801132,0.00013699,2]
[408634781,1774029040823,-151.0,0.00013699,2]
[408634782,1774029040832,-151.0,0.00013699,2]
[408634783,1774029040841,-154.523393,0.00013699,2]
[408634784,1774029040851,-5000.0,0.00013699,2]
[408634785,1774029040861,-3873.084931,0.00013699,2]
[408634786,1774029040870,-151.0,0.00013699,2]
[408634787,1774029040879,-151.0,0.00013699,2]
[408634788,1774029040889,-151.0,0.00013699,2]
[408634789,1774029040899,-151.0,0.00013699,2]
[408634790,1774029040910,-151.56,0.00013699,2]
[408634791,1774029040920,-151.0,0.00013699,2]
[408634792,1774029040930,-151.0,0.00013699,2]
[408634793,1774029040940,-151.0,0.00013699,2]
[408634794,1774029040950,-157.984336,0.00013699,2]
[408634795,1774029040960,-151.0,0.00013699,2]
[408634796,1774029040970,-151.0,0.00013699,2]
[408634797,1774029040979,-500.0,0.000137,2]
[408634798,1774029040989,-500.0,0.000137,2]
[408634799,1774029040998,-1761.07123,0.000137,2]
[408634800,1774029041008,-736.0,0.0001376,2]
[408634801,1774029041017,-247.49,0.00013766,2]
[408634802,1774029041027,-200.0,0.00013771,2]
[408634803,1774029041036,-3367.76695811,0.00013865,2]
[408634804,1774029041046,-500.0,0.00013888,2]
[408634805,1774029041055,-500.0,0.00013888,2]
[408634806,1774029041065,-500.0,0.00013889,2]
[408634807,1774029041074,-500.0,0.00013889,2]
[408634808,1774029041083,-1761.07123,0.000139,2]
[408634809,1774029041094,-166.66,0.00013926,2]
[408634810,1774029041103,-1150.55321673,0.0001399,2]
[408634811,1774029041113,-151.0,0.0001399,2]
[408634812,1774029041171,-247.49,0.0001404,2]
[408634813,1774029041180,-1196.50965604,0.00014043,2]
[408634814,1774029041190,-151.0,0.00014062,2]
[408634815,1774029041200,-1044.0,0.00014089,2]
[408634816,1774029041211,-3513.0,0.00014089,2]
[408634817,1774029041220,-1344.0,0.00014089,2]
[408634818,1774029041230,-1261.0,0.00014089,2]
[408634819,1774029041239,-3759.0,0.00014089,2]
[408634820,1774029041248,-6006.0,0.00014089,2]
[408634821,1774029041258,-3367.76695805,0.00014091,2]
[408634822,1774029041267,-1761.07123,0.000141,2]
[408634823,1774029041276,-166.66,0.00014196,2]
[408634824,1774029041285,-151.0,0.00014233,2]
[408634825,1774029041296,-151.0,0.00014233,2]
[408634826,1774029041305,-151.0,0.00014233,2]
[408634827,1774029041315,-500.0,0.00014248,2]
[408634828,1774029041324,-1761.07123,0.000143,2]
[408634829,1774029041334,-3367.76695805,0.00014317,2]
[408634830,1774029041343,-500.0,0.00014356,2]
[408634831,1774029041352,-600.0,0.00014356,2]
[408634832,1774029041365,-1000.0,0.00014356,2]
[408634833,1774029041375,-2402.0,0.0001438,2]
[408634834,1774029041384,-159.65,0.00014401,2]
[408634835,1774029041394,-389.95,0.0001442,2]
[408634836,1774029041405,-151.0,0.00014422,2]
[408634837,1774029041414,-2402.0,0.00014426,2]
[408634838,1774029041423,-341.8148,0.000145,2]
[408634839,1774029041436,-1761.07123,0.000145,2]
[408634840,1774029041446,-164.14,0.0001453,2]
[408634841,1774029041455,-3367.76695805,0.00014543,2]
[408634842,1774029041465,-650.0,0.00014549,5]
[408634843,1774029041474,-156.69,0.00014612,2]
[408634844,1774029041484,-2000.0,0.00014627,2]
[408634845,1774029041493,-4609.0,0.0001464,2]
[408634846,1774029041503,-1152.0,0.0001464,2]
[408634847,1774029041512,-175.58,0.00014645,2]
[408634848,1774029041522,-268.14634942,0.0001465,2]
[408634849,1774029041531,-1196.50965604,0.00014686,2]
[408634850,1774029041541,-301.01377224,0.000147,2]
[408634852,1774029041550,-155.556,0.00014716,2]
[408634853,1774029041559,-1567.0,0.00014746,2]
[408634854,1774029041568,-3367.76695805,0.00014769,2]
[408634855,1774029041577,-151.0,0.00014772,2]
[408634856,1774029041588,-8259.7117103,0.00014825,2]
[408634857,1774029041599,-7943.4935519,0.00014825,2]
[408634858,1774029041608,-3226.0106918,0.00014825,2]
[408634859,1774029041618,-10665.2887513,0.00014825,2]
[408634860,1774029041627,-500.0,0.00014829,2]
[408634861,1774029041637,-343.08249189,0.00014829,2]
[408634862,1774029041647,-314.70065834,0.00014829,2]
[408634863,1774029041656,-500.0,0.00014829,2]
[408634864,1774029041665,-199.33106031,0.00014829,2]
[408634865,1774029041675,-500.0,0.00014829,2]
[408634866,1774029041685,-500.0,0.00014829,2]
[408634867,1774029041695,-452.59977357,0.00014829,2]
[408634868,1774029041706,-500.0,0.00014829,2]
[408634869,1774029041715,-500.0,0.00014829,2]
[408634870,1774029041725,-500.0,0.00014829,2]
[408634871,1774029041734,-500.0,0.00014829,2]
[408634872,1774029041746,-500.0,0.00014829,2]
[408634873,1774029041755,-500.0,0.00014829,2]
[408634874,1774029041764,-500.0,0.00014829,2]
[408634875,1774029041773,-155.67,0.00014848,2]
[408634876,1774029041783,-442.12,0.00014877,2]
[408634877,1774029041793,-168.0,0.00014877,2]
[408634878,1774029041803,-168.0,0.00014922,2]
[408634879,1774029041812,-168.0,0.0001494,2]
[408634880,1774029041822,-3367.76695805,0.00014996,2]
[408634881,1774029041831,-250.0,0.00015,2]
[408634882,1774029041841,-519.0,0.00015,2]
[408634883,1774029041850,-178.0937667,0.0001504,5]
[408634884,1774029041859,-450.01,0.00015068,2]
[408634885,1774029041869,-10000.0,0.00015085,2]
[408634886,1774029041878,-1252.0,0.00015101,2]
[408634887,1774029041887,-506.0,0.00015159,2]
[408634888,1774029041897,-2402.0,0.0001518,2]
[408634889,1774029041906,-168.0,0.00015185,2]
[408634890,1774029041915,-1842.9907967,0.000152,2]
[408634891,1774029041924,-1772.4329883,0.000152,2]
[408634892,1774029041933,-719.8202823,0.000152,2]
[408634893,1774029041943,-2379.7475871,0.000152,2]
[408634894,1774029041952,-600.0,0.00015201,5]
[408634895,1774029041963,-152.0,0.00015206,3]
[408634896,1774029041973,-506.0,0.00015211,2]
[408634897,1774029041983,-168.0,0.00015213,2]
[408634898,1774029041993,-3367.76695805,0.00015222,2]
[408634899,1774029042002,-686.0,0.00015261,5]
[408634900,1774029042011,-503.0,0.00015262,3]
[408634901,1774029042020,-168.0,0.00015298,2]
[408634902,1774029042031,-2183.474,0.00015309,2]
[408634903,1774029042040,-1196.50965604,0.00015329,2]
[408634904,1774029042049,-506.0,0.00015334,2]
[408634905,1774029042059,-500.0,0.00015344,2]
[408634906,1774029042069,-500.0,0.00015344,2]
[408634907,1774029042079,-506.0,0.00015345,2]
[408634908,1774029042088,-173.558,0.00015382,2]
[408634909,1774029042098,-3306.76284261,0.00015393,2]
[408634910,1774029042108,-800.0,0.000154,5]
[408634911,1774029042118,-4779.40285181,0.00015413,3]
[408634912,1774029042127,-1013.0,0.00015427,2]
[408634913,1774029042137,-3367.76695805,0.00015448,2]
[408634914,1774029042148,-300.40126868,0.00015455,2]
[408634915,1774029042158,-3631.9963475,0.000155,3]
[408634916,1774029042168,-1700.0,0.000155,5]
[408634917,1774029042178,-5000.0,0.000155,2]
[408634918,1774029042189,-4000.0,0.00015507,2]
[408634919,1774029042199,-156.69,0.00015525,2]
[408634920,1774029042209,-200.0,0.00015574,2]
[408634921,1774029042218,-1330.0,0.00015585,2]
[408634922,1774029042228,-3719.81812191,0.00015588,2]
[408634923,1774029042238,-1567.0,0.00015595,2]
[408634924,1774029042248,-153.73987764,0.000156,4]
[408634925,1774029042258,-2600.0,0.000156,5]
[408634926,1774029042267,-159.65,0.00015602,2]
[408634927,1774029042276,-155.67,0.00015607,2]
[408634928,1774029042286,-442.12,0.00015664,2]
[408634929,1774029042296,-3367.76695805,0.00015674,2]
[408634930,1774029042306,-500.0,0.00015678,2]
[408634931,1774029042316,-500.0,0.00015678,2]
[408634932,1774029042326,-500.0,0.00015678,2]
[408634933,1774029042335,-500.0,0.00015678,2]
[408634934,1774029042345,-500.0,0.00015678,2]
[408634935,1774029042355,-500.0,0.00015678,2]
[408634936,1774029042368,-500.0,0.00015678,2]
[408634937,1774029042378,-500.0,0.00015678,2]
[408634938,1774029042388,-500.0,0.00015678,2]
[408634939,1774029042398,-500.0,0.00015678,2]
[408634940,1774029042407,-500.0,0.00015678,2]
[408634941,1774029042417,-500.0,0.00015678,2]
[408634942,1774029042426,-500.0,0.00015678,2]
[408634943,1774029042437,-500.0,0.00015678,2]
[408634944,1774029042447,-500.0,0.00015678,2]
[408634945,1774029042457,-500.0,0.00015678,2]
[408634946,1774029042467,-500.0,0.00015678,2]
[408634947,1774029042476,-500.0,0.00015678,2]
[408634948,1774029042486,-500.0,0.00015678,2]
[408634949,1774029042496,-632.0,0.00015678,2]
[408634950,1774029042506,-500.0,0.00015678,2]
[408634951,1774029042515,-500.0,0.00015678,2]
[408634952,1774029042525,-500.0,0.00015678,2]
[408634953,1774029042537,-512.0,0.00015678,2]
[408634955,1774029042547,-885.0,0.00015678,2]
[408634956,1774029042557,-500.0,0.00015678,2]
[408634957,1774029042567,-500.0,0.00015678,2]
[408634958,1774029042576,-500.0,0.00015678,2]
[408634959,1774029042586,-500.0,0.00015678,2]
[408634960,1774029042596,-500.0,0.00015678,2]
[408634961,1774029042606,-500.0,0.00015678,2]
[408634962,1774029042616,-500.0,0.00015678,2]
[408634963,1774029042626,-500.0,0.00015678,2]
[408634964,1774029042636,-500.0,0.00015678,2]
[408634965,1774029042645,-500.0,0.00015678,2]
[408634967,1774029042655,-500.0,0.00015678,2]
[408634969,1774029042665,-500.0,0.00015678,2]
[408634971,1774029042675,-500.0,0.00015678,2]
[408634972,1774029042684,-500.0,0.00015678,2]
[408634973,1774029042695,-500.0,0.00015678,2]
[408634974,1774029042704,-500.0,0.00015678,2]
[408634975,1774029042713,-500.0,0.00015678,2]
[408634976,1774029042723,-500.0,0.00015678,2]
[408634977,1774029042732,-524.0,0.00015678,2]
[408634978,1774029042742,-500.0,0.00015678,2]
[408634979,1774029042751,-500.0,0.00015678,2]
[408634980,1774029042761,-500.0,0.00015678,2]
[408634981,1774029042771,-500.0,0.00015678,2]
[408634982,1774029042780,-500.0,0.00015678,2]
[408634984,1774029042790,-521.0,0.00015678,2]
[408634985,1774029042799,-507.46942592,0.00015699,2]
[408634986,1774029042809,-500.0,0.00015699,2]
[408634987,1774029042819,-500.0,0.00015699,2]
[408634988,1774029042829,-500.0,0.00015699,2]
[408634989,1774029042839,-500.0,0.00015699,2]
[408634990,1774029042848,-500.0,0.00015699,2]
[408634991,1774029042857,-500.0,0.00015699,2]
[408634992,1774029042867,-500.0,0.00015699,2]
[408634993,1774029042876,-500.0,0.00015699,2]
[408634994,1774029042885,-504.81538106,0.00015699,2]
[408634995,1774029042895,-231288.01038953,0.000157,2]
[408634996,1774029042905,-73430.52,0.000157,2]
[408634997,1774029042915,-4557.32,0.000157,2]
[408634998,1774029042926,-2722.46,0.000157,2]
[408634999,1774029042935,-4092.85,0.000157,2]
[408635000,1774029042947,-3500.0,0.000157,5]
[408635001,1774029042956,-600.0,0.00015726,2]
[408635002,1774029042966,-1000.0,0.00015726,2]
[408635003,1774029042975,-506.0,0.00015747,2]
[408635004,1774029042984,-153.73987762,0.0001575,5]
[408635005,1774029042994,-500.0,0.00015789,2]
[408635006,1774029043003,-500.0,0.00015789,2]
[408635007,1774029043013,-170.24432267,0.0001579,2]
[408635008,1774029043023,-449.8048,0.000158,2]
[408635009,1774029043033,-4300.0,0.000158,5]
[408635010,1774029043042,-506.0,0.00015841,2]
[408635011,1774029043051,-168.0,0.00015859,2]
[408635012,1774029043060,-632.25,0.00015862,2]
[408635013,1774029043069,-500.0,0.00015873,2]
[408635014,1774029043079,-500.0,0.00015873,2]
[408635015,1774029043088,-500.0,0.00015873,2]
[408635016,1774029043098,-500.0,0.00015873,2]